bitfinex/quotes_SOLUSD_20220118
["timestamp","ask_amount","ask_price","bid_price","bid_amount"]
[1642501193257,23.67995351,137.19,137.13,0.25]
[1642501193457,23.42995351,137.19,137.13,0.25]
[1642501193955,2.916,137.21,137.13,0.25]
[1642501194755,0.25,137.2,137.13,0.25]
[1642501196055,2.916,137.19,137.13,0.25]
[1642501196257,0.25,137.18,137.13,0.25]
[1642501196657,2.27031547,137.18,137.13,0.25]
[1642501196856,2.02031547,137.18,137.13,0.25]
[1642501197156,13.8526,137.19,137.13,0.25]
[1642501197356,0.25,137.17,137.13,0.25]
[1642501198465,0.25,137.17,137.12,29.4152]
[1642501199366,0.25,137.17,137.13,0.25]
[1642501199865,0.25,137.18,137.13,0.25]
[1642501200966,0.25,137.18,137.12,29.4152]
[1642501202170,14.1036,137.18,137.12,29.4152]
[1642501202567,3.166,137.18,137.12,29.4152]
[1642501203270,9.166,137.18,137.12,29.4152]
[1642501208780,3.166,137.18,137.12,29.4152]
[1642501213895,1.44015493,137.22,137.13,0.25]
[1642501214294,1.44015493,137.22,137.13,74.30899262]
[1642501214493,1.44015493,137.22,137.14,23.9814]
[1642501214693,1.44015493,137.22,137.14,28.13397443]
[1642501214895,1.44015493,137.22,137.15,1.69899262]
[1642501215095,1.44015493,137.22,137.16,10.932]
[1642501215296,1.44015493,137.22,137.17,0.25]
[1642501215695,40.33548047,137.27,137.17,42.66441792]
[1642501215895,40.33548047,137.27,137.18,24.7076]
[1642501216096,2.914,137.26,137.18,24.7076]
[1642501216298,2.914,137.26,137.19,0.25]
[1642501216496,0.25,137.25,137.19,0.25]
[1642501217297,0.25,137.25,137.18,41.6379]
[1642501217497,0.25,137.25,137.19,0.25]
[1642501220499,0.25,137.25,137.18,6.0]
[1642501220700,2.915,137.24,137.18,6.0]
[1642501220900,2.915,137.24,137.15,23.563]
[1642501221099,0.25,137.23,137.15,23.813]
[1642501221299,3.165,137.23,137.15,29.813]
[1642501221502,14.0986,137.23,137.15,29.813]
[1642501221700,14.0986,137.23,137.15,29.563]
[1642501222100,14.0986,137.23,137.16,0.25]
[1642501222500,2.915,137.23,137.16,46.57176388]
[1642501222902,2.915,137.23,137.16,52.57176388]
[1642501223103,2.915,137.23,137.16,6.25]
[1642501223503,2.915,137.23,137.16,0.25]
[1642501224329,2.915,137.23,137.16,11.1826]
[1642501224529,2.915,137.23,137.16,12.63159262]
[1642501224731,2.915,137.25,137.16,18.89159262]
[1642501224929,2.915,137.25,137.17,24.3484]
[1642501225130,0.25,137.24,137.17,24.3484]
[1642501225329,0.25,137.24,137.18,0.25]
[1642501225530,0.25,137.24,137.18,11.1805]
[1642501225931,0.25,137.24,137.18,17.1805]
[1642501226130,0.25,137.24,137.18,61.40400678]
[1642501226331,0.25,137.25,137.18,61.40400678]
[1642501226534,2.915,137.24,137.18,61.40400678]
[1642501226736,0.25,137.23,137.18,6.0]
[1642501227133,0.25,137.23,137.17,30.3484]
[1642501227335,2.915,137.22,137.17,30.3484]
[1642501227538,0.25,137.23,137.17,30.3484]
[1642501227937,3.165,137.23,137.17,30.3484]
[1642501230338,14.0984,137.23,137.17,6.0]
[1642501230739,14.0984,137.23,137.15,7.44899262]
[1642501230940,14.0984,137.23,137.16,0.25]
[1642501231139,14.0984,137.23,137.16,44.83874106]
[1642501231341,25.7579,137.26,137.16,63.47668403]
[1642501231541,25.7579,137.26,137.17,24.8042]
[1642501231740,22.8429,137.26,137.18,0.25]
[1642501233443,22.8429,137.26,137.18,11.1805]
[1642501233647,22.8429,137.26,137.19,42.62646299]
[1642501233845,22.8429,137.26,137.2,0.25]
[1642501234245,22.8429,137.26,137.19,29.0213]
[1642501234448,2.914,137.25,137.19,23.0213]
[1642501234646,10.9327,137.24,137.19,29.0213]
[1642501234845,10.9327,137.24,137.19,6.0]
[1642501234846,2.915,137.23,137.19,6.0]
[1642501235346,2.915,137.23,137.17,23.7722]
[1642501235578,38.44114289,137.24,137.17,24.0222]
[1642501235749,0.25,137.23,137.17,30.0222]
[1642501237250,2.915,137.22,137.17,30.0222]
[1642501237449,3.165,137.23,137.17,30.0222]
[1642501238451,3.165,137.23,137.17,29.7722]
[1642501238850,3.165,137.23,137.17,6.0]
[1642501239052,3.165,137.23,137.16,16.9321]
[1642501239756,3.165,137.23,137.17,0.25]
[1642501244189,3.165,137.23,137.16,41.187]
[1642501244394,14.0984,137.23,137.16,30.2549]
[1642501245893,11.1834,137.23,137.16,30.2549]
[1642501246094,2.915,137.22,137.16,30.2549]
[1642501246296,0.25,137.21,137.16,6.0]
[1642501246694,0.25,137.21,137.15,51.51521921]
[1642501248294,25.6753,137.24,137.16,0.25]
[1642501248593,25.6753,137.24,137.16,24.29624297]
[1642501248794,0.25,137.23,137.16,30.29624297]
[1642501249997,0.25,137.23,137.16,41.22804297]
[1642501250195,2.915,137.25,137.16,41.22804297]
[1642501251096,13.8469,137.25,137.16,39.7825]
[1642501251696,0.25,137.24,137.16,39.7825]
[1642501251899,2.915,137.23,137.16,39.7825]
[1642501252098,3.165,137.24,137.16,39.7825]
[1642501256504,3.165,137.24,137.16,39.5325]
[1642501257807,3.165,137.24,137.17,0.25]
[1642501258004,3.165,137.24,137.17,11.1816]
[1642501258202,3.165,137.24,137.17,17.1816]
[1642501258403,3.165,137.24,137.18,49.5198529]
[1642501258803,3.165,137.24,137.18,55.5198529]
[1642501259903,2.915,137.24,137.18,55.5198529]
[1642501260102,0.25,137.23,137.18,55.5198529]
[1642501260306,2.915,137.22,137.18,6.0]
[1642501260708,0.25,137.21,137.17,16.9316]
[1642501261107,2.915,137.23,137.17,16.9316]
[1642501261306,2.915,137.25,137.18,0.25]
[1642501261504,2.915,137.25,137.2,10.9294]
[1642501261705,0.25,137.24,137.2,10.9294]
[1642501261905,23.287,137.26,137.2,16.9294]
[1642501262108,23.287,137.26,137.2,55.83432621]
[1642501262308,23.287,137.26,137.21,0.25]
[1642501262508,23.287,137.26,137.2,55.83432621]
[1642501263607,0.25,137.25,137.2,55.83432621]
[1642501263809,23.287,137.26,137.2,55.83432621]
[1642501265208,23.287,137.26,137.21,11.1784]
[1642501265410,27.1952,137.28,137.21,11.1784]
[1642501265608,24.2812,137.28,137.21,17.1784]
[1642501265811,3.87567749,137.29,137.21,17.1784]
[1642501266309,3.87567749,137.29,137.21,40.5929]
[1642501266710,25.4748,137.3,137.21,40.5929]
[1642501267110,0.25,137.29,137.21,40.5929]
[1642501269538,2.914,137.28,137.21,40.5929]
[1642501269740,0.25,137.27,137.21,40.5929]
[1642501269938,3.164,137.29,137.21,40.5929]
[1642501273440,3.164,137.29,137.21,40.3429]
[1642501273841,2.06367794,137.28,137.21,40.3429]
[1642501274140,2.914,137.27,137.21,40.3429]
[1642501274340,3.164,137.27,137.21,40.3429]
[1642501274541,5.22767794,137.27,137.21,40.3429]
[1642501274743,2.31367794,137.27,137.21,40.3429]
[1642501277044,2.914,137.26,137.21,40.3429]
[1642501277244,0.25,137.25,137.21,40.3429]
[1642501279250,0.25,137.26,137.21,40.3429]
[1642501280757,3.164,137.26,137.21,40.3429]
[1642501282956,3.164,137.26,137.21,6.0]
[1642501283757,5.22767794,137.26,137.21,6.0]
[1642501283962,5.22767794,137.26,137.2,6.0]
[1642501284356,5.22767794,137.26,137.19,39.6124]
[1642501285158,16.15897794,137.26,137.19,39.6124]
[1642501285559,16.15897794,137.26,137.19,16.48]
[1642501285760,2.06367794,137.25,137.19,16.48]
[1642501285961,2.915,137.24,137.17,2.06682312]
[1642501286159,3.165,137.24,137.17,8.06682312]
[1642501286361,10.9336,137.23,137.17,8.06682312]
[1642501286563,2.915,137.22,137.17,6.0]
[1642501286763,3.165,137.22,137.17,6.0]
[1642501286961,0.25,137.22,137.16,8.06682312]
[1642501287162,0.25,137.22,137.16,2.06682312]
[1642501287462,0.25,137.22,137.16,8.06682312]
[1642501287662,0.25,137.22,137.16,6.0]
[1642501287862,2.915,137.21,137.15,8.06682312]
[1642501288062,2.915,137.21,137.16,0.25]
[1642501289363,26.3271,137.22,137.16,0.25]
[1642501291565,2.915,137.22,137.16,0.25]
[1642501291770,2.06367794,137.23,137.16,11.1826]
[1642501291966,2.31367794,137.23,137.16,11.1826]
[1642501292163,2.31367794,137.23,137.16,17.1826]
[1642501292567,0.25,137.23,137.16,19.24942312]
[1642501292765,11.1835,137.23,137.16,8.31682312]
[1642501293166,2.915,137.22,137.16,8.31682312]
[1642501293368,0.25,137.21,137.16,8.31682312]
[1642501293567,0.25,137.21,137.16,6.25]
[1642501294169,0.25,137.21,137.16,6.0]
[1642501294572,2.915,137.2,137.15,8.06682312]
[1642501294773,0.25,137.19,137.15,8.06682312]
[1642501296001,13.8509,137.2,137.16,0.25]
[1642501296200,2.915,137.21,137.16,35.09536894]
[1642501296401,10.9349,137.22,137.16,41.09536894]
[1642501296601,2.06367794,137.22,137.16,41.09536894]
[1642501297202,2.06367794,137.22,137.16,6.25]
[1642501297401,2.06367794,137.22,137.16,23.2921]
[1642501297604,0.25,137.21,137.16,29.2921]
[1642501297901,0.25,137.23,137.16,29.2921]
[1642501298103,2.915,137.22,137.16,29.2921]
[1642501298302,0.25,137.21,137.16,29.2921]
[1642501298803,0.25,137.21,137.17,0.25]
[1642501299305,0.25,137.22,137.17,0.25]
[1642501300104,11.1844,137.22,137.17,0.25]
[1642501300607,14.0994,137.22,137.15,8.06682312]
[1642501300806,21.6354,137.22,137.15,8.06682312]
[1642501302407,23.69907794,137.22,137.15,6.0]
[1642501302911,23.69907794,137.22,137.14,8.06682312]
[1642501303108,23.69907794,137.22,137.15,0.25]
[1642501303708,23.44907794,137.22,137.15,0.25]
[1642501304309,21.3854,137.22,137.14,2.31682312]
[1642501304513,24.1245,137.21,137.14,2.31682312]
[1642501304708,24.1245,137.21,137.14,8.31682312]
[1642501304908,0.25,137.2,137.14,8.31682312]
[1642501306011,0.25,137.2,137.14,30.91052312]
[1642501307812,0.25,137.2,137.14,41.84472312]
[1642501308412,4.97867794,137.22,137.14,41.84472312]
[1642501308611,4.97867794,137.22,137.14,43.29435924]
[1642501308811,2.06367794,137.23,137.14,54.03435924]
[1642501309211,2.06367794,137.23,137.14,53.77435924]
[1642501309512,2.06367794,137.23,137.14,54.03435924]
[1642501309713,2.06367794,137.24,137.18,10.9308]
[1642501310211,2.06367794,137.24,137.19,0.25]
[1642501310610,3.37665678,137.25,137.18,29.138]
[1642501310812,0.25,137.24,137.19,0.25]
[1642501311412,0.25,137.24,137.19,11.1802]
[1642501311613,3.37665678,137.25,137.19,11.1802]
[1642501311813,3.37665678,137.25,137.19,17.1802]
[1642501312217,0.25,137.24,137.19,17.1802]
[1642501312414,6.29165678,137.25,137.19,17.1802]
[1642501312616,6.29165678,137.25,137.19,89.7902]
[1642501312617,2.06367794,137.25,137.19,89.7902]
[1642501312816,2.06367794,137.26,137.19,18.88760415]
[1642501313016,2.06367794,137.26,137.2,10.48]
[1642501313218,2.06367794,137.26,137.21,10.9284]
[1642501313818,2.06367794,137.27,137.21,10.9284]
[1642501314118,2.06367794,137.27,137.21,33.7293]
[1642501314822,2.06367794,137.28,137.21,33.7293]
[1642501316718,2.06367794,137.27,137.21,33.7293]
[1642501317119,2.06367794,137.27,137.21,22.8009]
[1642501317422,0.25,137.26,137.21,22.8009]
[1642501317820,0.25,137.26,137.22,0.25]
[1642501319322,2.06367794,137.27,137.22,0.25]
[1642501319522,2.06367794,137.27,137.22,42.10227512]
[1642501319927,2.06367794,137.27,137.22,48.10227512]
[1642501320823,2.06367794,137.27,137.22,58.58227512]
[1642501321024,2.06367794,137.28,137.23,1.44740415]
[1642501321223,2.06367794,137.28,137.24,10.73]
[1642501321623,2.06367794,137.28,137.24,16.73]
[1642501321851,2.06367794,137.29,137.24,16.73]
[1642501322226,2.06367794,137.29,137.24,27.6559]
[1642501323125,3.89510492,137.3,137.24,27.6559]
[1642501323326,2.06367794,137.3,137.24,27.4059]
[1642501326032,2.06367794,137.31,137.25,0.25]
[1642501326231,2.06367794,137.31,137.26,10.9247]
[1642501326631,2.06367794,137.31,137.27,0.25]
[1642501326831,2.06367794,137.31,137.27,43.54170558]
[1642501327232,2.06367794,137.31,137.27,49.54170558]
[1642501327831,2.06367794,137.31,137.27,6.25]
[1642501328031,2.06367794,137.31,137.27,0.25]
[1642501328231,2.06367794,137.31,137.27,6.25]
[1642501328434,0.25,137.3,137.27,6.0]
[1642501328834,0.25,137.3,137.25,30.2499]
[1642501329233,5.22567794,137.3,137.25,6.0]
[1642501329433,2.31367794,137.3,137.25,6.0]
[1642501329632,2.31367794,137.3,137.23,39.2171]
[1642501330134,3.36317756,137.29,137.23,39.2171]
[1642501330334,0.25,137.28,137.23,39.2171]
[1642501330533,0.25,137.28,137.23,6.0]
[1642501330934,0.25,137.28,137.21,8.06682312]
[1642501331140,2.914,137.27,137.2,64.77583872]
[1642501331534,2.914,137.27,137.2,75.70563872]
[1642501332134,4.97767794,137.27,137.2,75.70563872]
[1642501332337,2.06367794,137.27,137.21,10.73]
[1642501332738,2.06367794,137.27,137.21,16.73]
[1642501333335,13.24317794,137.28,137.21,16.73]
[1642501334339,13.24317794,137.28,137.21,27.6589]
[1642501335539,2.06367794,137.27,137.21,27.6589]
[1642501336340,13.24317794,137.28,137.21,27.6589]
[1642501337642,2.914,137.27,137.21,27.6589]
[1642501337845,0.25,137.26,137.21,16.73]
[1642501338843,2.06367794,137.27,137.21,27.659]
[1642501339844,4.97767794,137.28,137.21,29.09950122]
[1642501340047,2.06367794,137.28,137.21,29.09950122]
[1642501340650,2.06367794,137.29,137.21,31.16632434]
[1642501340845,2.06367794,137.29,137.22,22.7792]
[1642501341044,2.06367794,137.29,137.24,10.9257]
[1642501341247,2.06367794,137.29,137.25,0.25]
[1642501341447,2.06367794,137.29,137.25,10.73]
[1642501341850,2.06367794,137.29,137.26,44.27512387]
[1642501342049,2.06367794,137.29,137.26,54.75512387]
[1642501342249,2.06367794,137.29,137.27,0.25]
[1642501342448,2.06367794,137.29,137.26,71.68002387]
[1642501342648,2.06367794,137.29,137.27,0.25]
[1642501342848,3.24378438,137.31,137.27,0.25]
[1642501344476,3.24378438,137.31,137.27,11.1742]
[1642501344676,3.24378438,137.31,137.27,17.1742]
[1642501345579,1.18010644,137.31,137.27,17.1742]
[1642501346676,2.06367794,137.33,137.28,10.48]
[1642501346879,2.06367794,137.33,137.29,0.25]
[1642501351682,2.06367794,137.33,137.28,27.4029]
[1642501352482,2.06367794,137.33,137.28,16.48]
[1642501353083,0.25,137.32,137.28,16.48]
[1642501353286,2.31367794,137.32,137.28,6.0]
[1642501353684,2.31367794,137.32,137.27,6.0]
[1642501353884,2.31367794,137.32,137.25,16.9258]
[1642501354085,2.912,137.31,137.26,0.25]
[1642501354285,0.25,137.3,137.24,29.0772]
[1642501355587,4.97567794,137.31,137.25,0.25]
[1642501355789,2.06367794,137.31,137.25,0.25]
[1642501358087,2.06367794,137.32,137.25,0.25]
[1642501358488,2.06367794,137.32,137.25,11.1758]
[1642501358891,2.06367794,137.31,137.25,17.1758]
[1642501359589,2.06367794,137.32,137.25,17.1758]
[1642501359794,2.28367794,137.32,137.25,17.1758]
[1642501360495,2.28367794,137.32,137.25,6.25]
[1642501360897,2.28367794,137.32,137.25,0.25]
[1642501362699,2.912,137.31,137.25,0.25]
[1642501362899,2.912,137.31,137.24,23.0772]
[1642501363124,0.25,137.3,137.24,23.0772]
[1642501363324,1.64176375,137.3,137.23,12.54682312]
[1642501363627,8.66676375,137.3,137.2,14.63245004]
[1642501363825,11.17793036,137.29,137.2,59.24180421]
[1642501364226,0.25,137.28,137.2,59.24180421]
[1642501364824,0.25,137.28,137.2,16.48]
[1642501365224,10.9309,137.27,137.2,16.48]
[1642501365424,13.8449,137.27,137.2,16.48]
[1642501365624,0.25,137.26,137.2,16.48]
[1642501366226,0.25,137.26,137.21,0.25]
[1642501367026,0.25,137.26,137.2,0.25]
[1642501368425,2.914,137.27,137.2,0.25]
[1642501368625,23.7836,137.28,137.2,0.25]
[1642501368626,13.8434,137.29,137.2,12.16711774]
[1642501368827,13.8434,137.29,137.2,29.35691774]
[1642501370127,0.25,137.28,137.2,29.35691774]
[1642501370329,0.25,137.28,137.2,29.09691774]
[1642501370526,11.1796,137.28,137.2,29.09691774]
[1642501370734,11.1796,137.28,137.2,27.6598]
[1642501371342,2.914,137.27,137.2,6.25]
[1642501371740,0.25,137.26,137.2,6.25]
[1642501371940,11.181,137.26,137.2,6.25]
[1642501372339,11.181,137.26,137.2,6.0]
[1642501372540,19.143,137.26,137.19,6.0]
[1642501372739,2.914,137.25,137.19,6.0]
[1642501372940,2.914,137.25,137.17,6.0]
[1642501373143,11.1831,137.24,137.16,21.08485004]
[1642501373339,2.915,137.23,137.16,57.41630753]
[1642501374239,0.25,137.22,137.16,53.26385749]
[1642501374640,2.915,137.23,137.17,11.1822]
[1642501374840,10.9331,137.24,137.17,17.1822]
[1642501375040,0.25,137.23,137.17,17.1822]
[1642501377143,0.25,137.23,137.17,6.25]
[1642501377346,2.915,137.22,137.14,4.15245004]
[1642501377543,13.395,137.22,137.14,4.15245004]
[1642501377745,0.25,137.21,137.14,4.15245004]
[1642501377943,2.915,137.2,137.14,4.15245004]
[1642501378142,9.45,137.2,137.13,4.15245004]
[1642501378343,11.1867,137.19,137.13,4.15245004]
[1642501378943,11.1867,137.19,137.13,10.15245004]
[1642501379746,2.916,137.18,137.13,10.15245004]
[1642501379945,2.916,137.18,137.13,6.0]
[1642501380246,2.916,137.18,137.14,0.25]
[1642501380448,0.25,137.19,137.14,11.1845]
[1642501380652,0.25,137.19,137.14,12.62161774]
[1642501380852,0.25,137.2,137.14,18.62161774]
[1642501381053,0.25,137.2,137.14,6.0]
[1642501381254,11.1859,137.2,137.13,6.0]
[1642501381452,2.916,137.19,137.13,6.0]
[1642501381654,2.916,137.19,137.11,46.02255004]
[1642501381878,0.25,137.18,137.12,0.25]
[1642501382281,11.1876,137.18,137.12,0.25]
[1642501383182,2.916,137.17,137.12,0.25]
[1642501383384,0.25,137.16,137.12,0.25]
[1642501383584,11.1876,137.18,137.12,0.25]
[1642501383983,11.1876,137.18,137.11,55.9172]
[1642501384187,2.916,137.17,137.11,55.9172]
[1642501384384,0.25,137.16,137.11,55.9172]
[1642501385287,0.25,137.16,137.12,0.25]
[1642501385887,2.916,137.17,137.12,0.25]
[1642501386287,0.25,137.16,137.12,0.25]
[1642501389102,2.916,137.17,137.12,0.25]
[1642501389399,0.25,137.16,137.12,0.25]
[1642501390993,2.916,137.17,137.12,0.25]
[1642501391195,2.916,137.19,137.12,0.25]
[1642501391495,0.25,137.19,137.12,0.25]
[1642501392393,0.25,137.19,137.12,11.1857]
[1642501392894,0.25,137.19,137.12,17.1857]
[1642501394196,11.1866,137.19,137.12,6.25]
[1642501394396,11.1866,137.19,137.12,0.25]
[1642501398998,0.25,137.19,137.12,0.25]
[1642501399801,26.6348,137.2,137.12,11.186]
[1642501400003,2.916,137.23,137.12,29.10311774]
[1642501400200,2.916,137.23,137.13,23.6187]
[1642501400402,0.25,137.22,137.14,45.66359101]
[1642501400602,0.25,137.22,137.14,45.91359101]
[1642501400803,0.25,137.22,137.16,10.9321]
[1642501401201,0.25,137.22,137.17,0.25]
[1642501401605,0.25,137.23,137.17,0.25]
[1642501402001,11.1836,137.23,137.17,0.25]
[1642501402702,2.915,137.22,137.16,0.25]
[1642501403103,0.25,137.21,137.15,6.0]
[1642501403302,2.915,137.2,137.14,6.0]
[1642501403704,0.25,137.19,137.12,34.42445004]
[1642501403902,2.916,137.18,137.13,0.25]
[1642501404302,2.916,137.21,137.13,36.16970097]
[1642501404502,14.1013,137.21,137.13,46.85500097]
[1642501404703,14.1013,137.21,137.13,52.85500097]
[1642501404905,14.1013,137.21,137.14,0.25]
[1642501406306,11.1853,137.21,137.14,0.25]
[1642501409807,11.1853,137.21,137.13,52.85500097]
[1642501410009,2.916,137.2,137.13,16.9353]
[1642501410209,13.8518,137.2,137.13,16.9353]
[1642501410408,0.25,137.19,137.13,16.9353]
[1642501410607,0.25,137.19,137.13,6.0]
[1642501410808,0.25,137.19,137.12,41.208]
[1642501411009,2.916,137.18,137.12,41.208]
[1642501411210,2.916,137.18,137.12,30.272]
[1642501411411,0.25,137.17,137.12,30.272]
[1642501413213,11.1882,137.17,137.12,30.272]
[1642501414917,11.1882,137.17,137.12,6.0]
[1642501415217,11.1882,137.17,137.09,6.0]
[1642501415419,2.916,137.16,137.1,0.25]
[1642501415639,13.8557,137.16,137.1,0.25]
[1642501415939,0.25,137.15,137.08,56.61753462]
[1642501416139,2.916,137.14,137.08,56.61753462]
[1642501416342,0.25,137.13,137.08,56.61753462]
[1642501416741,0.25,137.13,137.08,52.46508458]
[1642501417142,0.25,137.13,137.09,0.25]
[1642501417641,10.9399,137.15,137.09,0.25]
[1642501417841,0.25,137.14,137.09,0.25]
[1642501418043,0.25,137.14,137.08,0.25]
[1642501419244,0.25,137.15,137.08,0.25]
[1642501419442,10.9406,137.14,137.08,0.25]
[1642501419843,0.25,137.13,137.08,0.25]
[1642501420043,3.166,137.13,137.06,4.15245004]
[1642501420245,7.642,137.13,137.06,4.15245004]
[1642501420545,2.916,137.12,137.06,4.15245004]
[1642501420746,11.1941,137.11,137.06,4.15245004]
[1642501420944,2.916,137.1,137.06,4.15245004]
[1642501421147,2.916,137.1,137.04,67.62044519]
[1642501421348,0.25,137.09,137.04,73.62044519]
[1642501422245,0.25,137.1,137.04,73.62044519]
[1642501422446,2.918,137.09,137.04,73.62044519]
[1642501422848,0.25,137.08,137.04,73.62044519]
[1642501427248,3.168,137.1,137.04,73.62044519]
[1642501428253,3.168,137.1,137.04,84.56284519]
[1642501428454,0.25,137.1,137.04,84.56284519]
[1642501432752,0.25,137.1,137.04,73.62044519]
[1642501438363,11.1939,137.1,137.04,73.62044519]
[1642501438661,2.918,137.09,137.04,73.62044519]
[1642501438865,0.25,137.08,137.04,28.7403]
[1642501439764,0.25,137.08,137.05,44.6800886]
[1642501439969,0.25,137.1,137.05,44.6800886]
[1642501440164,2.918,137.09,137.05,50.6800886]
[1642501440367,0.25,137.08,137.05,50.6800886]
[1642501442271,13.8626,137.09,137.05,50.6800886]
[1642501442469,10.9446,137.09,137.05,50.6800886]
[1642501443768,0.25,137.08,137.05,50.6800886]
[1642501444169,10.9446,137.09,137.05,50.6800886]
[1642501444969,13.8613,137.11,137.05,50.6800886]
[1642501445171,13.8613,137.11,137.06,0.25]
[1642501445371,23.2141,137.12,137.06,0.25]
[1642501445772,0.25,137.11,137.05,50.6800886]
[1642501445973,3.168,137.11,137.05,50.6800886]
[1642501446575,14.111,137.11,137.05,50.6800886]
[1642501448376,14.111,137.11,137.06,0.25]
[1642501449274,14.111,137.11,137.05,50.6800886]
[1642501451204,3.168,137.11,137.05,50.6800886]
[1642501454909,14.1112,137.11,137.05,50.6800886]
[1642501457914,14.1112,137.11,137.05,6.0]
[1642501458114,94.2612,137.11,137.05,6.0]
[1642501458912,94.2612,137.11,137.04,28.7403]
[1642501460517,21.6512,137.11,137.04,28.7403]
[1642501460719,14.1112,137.11,137.04,28.7403]
[1642501464727,13.8612,137.11,137.04,28.7403]
[1642501466127,10.9452,137.09,137.04,28.7403]
[1642501466330,0.25,137.08,137.04,28.7403]
[1642501467929,13.8632,137.09,137.04,28.7403]
[1642501468153,0.25,137.08,137.04,28.7403]
[1642501468356,11.1956,137.08,137.04,6.0]
[1642501468755,11.1956,137.08,137.03,45.38136215]
[1642501470357,0.25,137.08,137.03,45.38136215]
[1642501471060,24.6868,137.1,137.04,0.25]
[1642501471457,24.6868,137.1,137.03,45.38136215]
[1642501471656,2.918,137.09,137.03,45.38136215]
[1642501472258,0.25,137.08,137.03,45.38136215]
[1642501472859,11.1959,137.08,137.03,45.38136215]
[1642501473960,11.1959,137.08,137.03,6.0]
[1642501474161,11.1959,137.08,137.02,29.0335]
[1642501475164,11.1959,137.08,137.02,72.86018492]
[1642501477969,11.1959,137.08,137.02,29.0335]
[1642501481178,11.1959,137.08,137.03,0.25]
[1642501483179,0.25,137.08,137.03,0.25]
[1642501483481,10.9445,137.1,137.03,0.25]
[1642501483880,10.9445,137.1,137.03,11.1932]
[1642501484283,37.3373,137.12,137.03,17.1932]
[1642501484483,37.3373,137.12,137.04,23.4345]
[1642501484684,2.918,137.12,137.04,23.4345]
[1642501484883,2.918,137.12,137.05,0.25]
[1642501485186,3.09876524,137.14,137.05,0.25]
[1642501485485,1.18780204,137.14,137.05,0.25]
[1642501485686,1.18780204,137.14,137.05,1.68711774]
[1642501485883,1.18780204,137.14,137.06,64.10792031]
[1642501486285,1.18780204,137.14,137.07,0.25]
[1642501486489,0.25,137.13,137.07,0.25]
[1642501487317,1.18780204,137.14,137.07,0.25]
[1642501487513,1.18780204,137.14,137.07,18.57401774]
[1642501487912,1.18780204,137.14,137.07,24.83401774]
[1642501488116,1.18780204,137.14,137.07,97.44401774]
[1642501489212,1.18780204,137.14,137.09,2.07414517]
[1642501489415,1.18780204,137.14,137.1,10.9366]
[1642501489614,1.18780204,137.14,137.11,47.29466748]
[1642501489816,1.18780204,137.14,137.12,0.25]
[1642501490619,1.18780204,137.14,137.13,6.06439994]
[1642501490817,1.18780204,137.14,137.13,12.31439994]
[1642501491618,1.18780204,137.14,137.13,12.06439994]
[1642501492419,1.18780204,137.14,137.13,6.06439994]
[1642501494919,2.916,137.17,137.13,6.06439994]
[1642501495120,12.3909632,137.21,137.13,12.06439994]
[1642501495121,26.1282,137.2,137.13,12.06439994]
[1642501495419,2.916,137.2,137.13,19.22939994]